[Event "Titled Tuesday Blitz October 31 Early 2023"]
[White "Guevara Sanchez, Erick Marvin"]
[Black "Pavlidou, Ekaterini"]
[WhiteFideId "6700136"]
[BlackFideId "4213262"]
[WhiteElo "2143"]
[BlackElo "2322"]
[Result "0-1"]
[Round "10"]
[TimeControl "180+1"]
[Date "2023.10.31"]
[WhiteClock "0:00:00"]
[BlackClock "0:00:05"]
[Board "120"]

1. e4 {[%clk 0:03:00]}  c5 {[%clk 0:02:59]} 2. Nf3 {[%clk 0:03:00]}  Nc6 {[%clk 0:02:59]} 3. d4 {[%clk 0:03:00]}  cxd4 {[%clk 0:02:59]} 4. Nxd4 {[%clk 0:03:01]}  e5 {[%clk 0:02:59]} 5. Nb5 {[%clk 0:03:01]}  d6 {[%clk 0:02:59]} 6. N1c3 {[%clk 0:03:00]}  a6 {[%clk 0:02:59]} 7. Na3 {[%clk 0:03:00]}  Be6 {[%clk 0:02:59]} 8. Nd5 {[%clk 0:02:57]}  b5 {[%clk 0:02:40]} 9. c3 {[%clk 0:02:52]}  g6 {[%clk 0:02:36]} 10. Be3 {[%clk 0:02:43]}  Rb8 {[%clk 0:02:33]} 11. Nc2 {[%clk 0:02:40]}  Bg7 {[%clk 0:02:32]} 12. Ncb4 {[%clk 0:02:33]}  Nxb4 {[%clk 0:02:23]} 13. Nxb4 {[%clk 0:02:31]}  Ne7 {[%clk 0:02:06]} 14. Nxa6 {[%clk 0:02:30]}  d5 {[%clk 0:02:06]} 15. Nxb8 {[%clk 0:02:27]}  Qxb8 {[%clk 0:02:06]} 16. f3 {[%clk 0:02:21]}  O-O {[%clk 0:02:01]} 17. Be2 {[%clk 0:02:19]}  d4 {[%clk 0:01:58]} 18. Bd2 {[%clk 0:02:15]}  Rd8 {[%clk 0:01:55]} 19. cxd4 {[%clk 0:02:13]}  exd4 {[%clk 0:01:53]} 20. Bd3 {[%clk 0:02:10]}  Be5 {[%clk 0:01:49]} 21. Qe2 {[%clk 0:02:05]}  Bxh2 {[%clk 0:01:42]} 22. O-O-O {[%clk 0:02:02]}  Bxa2 {[%clk 0:01:40]} 23. Bg5 {[%clk 0:01:57]}  Bf4+ {[%clk 0:01:34]} 24. Bxf4 {[%clk 0:01:56]}  Qxf4+ {[%clk 0:01:33]} 25. Rd2 {[%clk 0:01:47]}  Rc8+ {[%clk 0:01:22]} 26. Kd1 {[%clk 0:01:45]}  b4 {[%clk 0:01:03]} 27. Ke1 {[%clk 0:01:15]}  Qg3+ {[%clk 0:00:54]} 28. Kf1 {[%clk 0:00:57]}  Bb3 {[%clk 0:00:52]} 29. Bc2 {[%clk 0:00:53]}  Bc4 {[%clk 0:00:46]} 30. Bd3 {[%clk 0:00:50]}  Bb3 {[%clk 0:00:43]} 31. Bc2 {[%clk 0:00:27]}  Bc4 {[%clk 0:00:41]} 32. Bd3 {[%clk 0:00:27]}  Be6 {[%clk 0:00:41]} 33. Rc2 {[%clk 0:00:22]}  Ra8 {[%clk 0:00:40]} 34. Rc1 {[%clk 0:00:19]}  g5 {[%clk 0:00:37]} 35. Qf2 {[%clk 0:00:16]}  Qe5 {[%clk 0:00:36]} 36. Rd1 {[%clk 0:00:14]}  Ng6 {[%clk 0:00:36]} 37. g3 {[%clk 0:00:14]}  Bb3 {[%clk 0:00:33]} 38. Rc1 {[%clk 0:00:11]}  Be6 {[%clk 0:00:21]} 39. Kg2 {[%clk 0:00:11]}  Kg7 {[%clk 0:00:20]} 40. Rh5 {[%clk 0:00:07]}  h6 {[%clk 0:00:20]} 41. f4 {[%clk 0:00:07]}  Qb8 {[%clk 0:00:11]} 42. f5 {[%clk 0:00:06]}  Bd7 {[%clk 0:00:10]} 43. Qxd4+ {[%clk 0:00:06]}  Ne5 {[%clk 0:00:09]} 44. f6+ {[%clk 0:00:03]}  Kg6 {[%clk 0:00:08]} 45. Rch1 {[%clk 0:00:02]}  Ng4 {[%clk 0:00:08]} 46. Rxh6+ {[%clk 0:00:02]}  Nxh6 {[%clk 0:00:08]} 47. e5+ {[%clk 0:00:03]}  Bf5 {[%clk 0:00:06]} 48. Rxh6+ {[%clk 0:00:02]}  Kxh6 {[%clk 0:00:07]} 49. Bxf5 {[%clk 0:00:02]}  Qa7 {[%clk 0:00:07]} 50. Qg4 {[%clk 0:00:02]}  Qb7+ {[%clk 0:00:07]} 51. Kh3 {[%clk 0:00:00]}  Rh8 {[%clk 0:00:05]} 0-1


[Site "https://www.chess.com"]

[Event "Titled Tuesday Blitz October 31 Early 2023"]
[White "Vifleemskaia, Svetlana"]
[Black "Feliz Dotel, Dewar Bienvenido"]
[WhiteFideId "4129490"]
[BlackFideId "6402801"]
[WhiteElo "2256"]
[BlackElo "2149"]
[Result "1-0"]
[Round "10"]
[TimeControl "180+1"]
[Date "2023.10.31"]
[WhiteClock "0:00:52"]
[BlackClock "0:00:34"]
[Board "123"]

1. d4 {[%clk 0:03:00]}  Nf6 {[%clk 0:02:59]} 2. c4 {[%clk 0:03:00]}  e6 {[%clk 0:02:59]} 3. Nc3 {[%clk 0:03:00]}  d5 {[%clk 0:03:00]} 4. cxd5 {[%clk 0:02:58]}  Nxd5 {[%clk 0:03:00]} 5. e4 {[%clk 0:02:58]}  Nxc3 {[%clk 0:02:59]} 6. bxc3 {[%clk 0:02:58]}  c5 {[%clk 0:03:00]} 7. Rb1 {[%clk 0:02:58]}  cxd4 {[%clk 0:02:57]} 8. cxd4 {[%clk 0:02:59]}  Qa5+ {[%clk 0:02:57]} 9. Qd2 {[%clk 0:02:57]}  Qc7 {[%clk 0:02:58]} 10. Nf3 {[%clk 0:02:52]}  Nc6 {[%clk 0:02:57]} 11. Bb5 {[%clk 0:02:17]}  Bd7 {[%clk 0:02:51]} 12. O-O {[%clk 0:02:12]}  Be7 {[%clk 0:02:48]} 13. d5 {[%clk 0:02:06]}  exd5 {[%clk 0:02:38]} 14. exd5 {[%clk 0:02:05]}  Nb8 {[%clk 0:02:25]} 15. Re1 {[%clk 0:01:55]}  Bxb5 {[%clk 0:02:13]} 16. d6 {[%clk 0:01:49]}  Qc5 {[%clk 0:01:24]} 17. Rxe7+ {[%clk 0:01:39]}  Kf8 {[%clk 0:01:24]} 18. Qf4 {[%clk 0:01:36]}  Qc4 {[%clk 0:01:16]} 19. Rxb5 {[%clk 0:01:22]}  Qxf4 {[%clk 0:01:13]} 20. Bxf4 {[%clk 0:01:21]}  h5 {[%clk 0:00:58]} 21. Rbxb7 {[%clk 0:01:18]}  Rh7 {[%clk 0:00:53]} 22. Rxf7+ {[%clk 0:01:15]}  Kg8 {[%clk 0:00:53]} 23. Ng5 {[%clk 0:01:06]}  Rh6 {[%clk 0:00:52]} 24. Rxg7+ {[%clk 0:01:04]}  Kh8 {[%clk 0:00:51]} 25. Rge7 {[%clk 0:00:55]}  Rf6 {[%clk 0:00:34]} 26. Re8+ {[%clk 0:00:52]} 1-0


[Site "https://www.chess.com"]

[Event "Titled Tuesday Blitz October 31 Early 2023"]
[White "Elbebiber"]
[Black "De Souza, Cristiano Gomes"]
[BlackFideId "2151758"]
[WhiteElo "2136"]
[BlackElo "2248"]
[Result "1/2-1/2"]
[Round "10"]
[TimeControl "180+1"]
[Date "2023.10.31"]
[WhiteClock "0:00:14"]
[BlackClock "0:00:30"]
[Board "124"]

1. f4 {[%clk 0:03:00]}  Nf6 {[%clk 0:02:59]} 2. Nf3 {[%clk 0:03:00]}  g6 {[%clk 0:02:59]} 3. e3 {[%clk 0:02:56]}  Bg7 {[%clk 0:03:00]} 4. d4 {[%clk 0:02:47]}  O-O {[%clk 0:03:01]} 5. Bd3 {[%clk 0:02:45]}  b6 {[%clk 0:02:58]} 6. O-O {[%clk 0:02:32]}  Bb7 {[%clk 0:02:57]} 7. Qe2 {[%clk 0:02:29]}  d6 {[%clk 0:02:56]} 8. c3 {[%clk 0:02:25]}  Nbd7 {[%clk 0:02:56]} 9. e4 {[%clk 0:02:21]}  e5 {[%clk 0:02:56]} 10. Be3 {[%clk 0:02:10]}  exd4 {[%clk 0:02:53]} 11. Bxd4 {[%clk 0:02:06]}  Re8 {[%clk 0:02:52]} 12. Nbd2 {[%clk 0:02:01]}  c5 {[%clk 0:02:48]} 13. Bf2 {[%clk 0:01:47]}  Qc7 {[%clk 0:02:30]} 14. Bh4 {[%clk 0:01:37]}  Nxe4 {[%clk 0:02:16]} 15. Nxe4 {[%clk 0:01:30]}  d5 {[%clk 0:02:14]} 16. Ne5 {[%clk 0:01:13]}  Nxe5 {[%clk 0:02:11]} 17. fxe5 {[%clk 0:01:11]}  dxe4 {[%clk 0:01:51]} 18. Bc4 {[%clk 0:00:59]}  Rf8 {[%clk 0:01:51]} 19. Bf6 {[%clk 0:00:56]}  a6 {[%clk 0:01:46]} 20. a4 {[%clk 0:00:52]}  h5 {[%clk 0:01:21]} 21. Qe3 {[%clk 0:00:51]}  Kh7 {[%clk 0:01:17]} 22. Bxg7 {[%clk 0:00:43]}  Kxg7 {[%clk 0:01:17]} 23. Qf4 {[%clk 0:00:43]}  Qe7 {[%clk 0:01:13]} 24. Qf6+ {[%clk 0:00:39]}  Qxf6 {[%clk 0:01:12]} 25. exf6+ {[%clk 0:00:40]}  Kh6 {[%clk 0:01:12]} 26. Rad1 {[%clk 0:00:40]}  Bc8 {[%clk 0:00:51]} 27. Rd6 {[%clk 0:00:36]}  Rb8 {[%clk 0:00:47]} 28. Bd5 {[%clk 0:00:32]}  Bf5 {[%clk 0:00:46]} 29. Re1 {[%clk 0:00:30]}  Kg5 {[%clk 0:00:38]} 30. Bxe4 {[%clk 0:00:25]}  Rfd8 {[%clk 0:00:38]} 31. Rxd8 {[%clk 0:00:21]}  Rxd8 {[%clk 0:00:37]} 32. Bxf5 {[%clk 0:00:21]}  gxf5 {[%clk 0:00:36]} 33. Kf2 {[%clk 0:00:17]}  Kxf6 {[%clk 0:00:36]} 34. Re2 {[%clk 0:00:16]}  b5 {[%clk 0:00:35]} 35. axb5 {[%clk 0:00:15]}  axb5 {[%clk 0:00:36]} 36. g3 {[%clk 0:00:15]}  Rd6 {[%clk 0:00:35]} 37. Kf3 {[%clk 0:00:15]}  Re6 {[%clk 0:00:35]} 38. Rd2 {[%clk 0:00:15]}  Ke5 {[%clk 0:00:35]} 39. Re2+ {[%clk 0:00:15]}  Kd6 {[%clk 0:00:35]} 40. Rd2+ {[%clk 0:00:16]}  Ke5 {[%clk 0:00:35]} 41. Re2+ {[%clk 0:00:16]}  Kf6 {[%clk 0:00:36]} 42. Rd2 {[%clk 0:00:16]}  Ke7 {[%clk 0:00:36]} 43. Rd5 {[%clk 0:00:15]}  b4 {[%clk 0:00:31]} 44. Rxc5 {[%clk 0:00:14]}  bxc3 {[%clk 0:00:31]} 45. bxc3 {[%clk 0:00:14]}  Kf6 {[%clk 0:00:31]} 46. c4 {[%clk 0:00:14]}  Rd6 {[%clk 0:00:31]} 47. Rd5 {[%clk 0:00:14]}  Rc6 {[%clk 0:00:30]} 48. c5 {[%clk 0:00:14]}  Ke6 {[%clk 0:00:30]} 49. Rd6+ {[%clk 0:00:11]}  Rxd6 {[%clk 0:00:30]} 50. cxd6 {[%clk 0:00:12]}  Kxd6 {[%clk 0:00:30]} 51. Kf4 {[%clk 0:00:13]}  Ke6 {[%clk 0:00:30]} 52. Kg5 {[%clk 0:00:12]}  Ke5 {[%clk 0:00:30]} 53. Kxh5 {[%clk 0:00:12]}  f4 {[%clk 0:00:31]} 54. gxf4+ {[%clk 0:00:12]}  Kxf4 {[%clk 0:00:31]} 55. h4 {[%clk 0:00:11]}  f5 {[%clk 0:00:32]} 56. Kg6 {[%clk 0:00:11]}  Kg4 {[%clk 0:00:32]} 57. h5 {[%clk 0:00:12]}  f4 {[%clk 0:00:32]} 58. h6 {[%clk 0:00:13]}  f3 {[%clk 0:00:33]} 59. h7 {[%clk 0:00:14]}  f2 {[%clk 0:00:33]} 60. h8=Q {[%clk 0:00:15]}  f1=Q {[%clk 0:00:32]} 61. Qh5+ {[%clk 0:00:14]}  Kg3 {[%clk 0:00:32]} 62. Qg5+ {[%clk 0:00:14]}  Kh2 {[%clk 0:00:31]} 63. Qh5+ {[%clk 0:00:13]}  Kg1 {[%clk 0:00:31]} 64. Qg5+ {[%clk 0:00:13]}  Kh1 {[%clk 0:00:31]} 65. Qh5+ {[%clk 0:00:14]}  Kg1 {[%clk 0:00:30]} 66. Qg5+ {[%clk 0:00:14]}  Kh1 {[%clk 0:00:30]} 67. Qh5+ {[%clk 0:00:14]}  Kg1 {[%clk 0:00:30]} 1/2-1/2


[Site "https://www.chess.com"]

[Event "Titled Tuesday Blitz October 31 Early 2023"]
[White "ivana_999"]
[Black "Tarnowska, Aleksandra"]
[BlackFideId "1180967"]
[WhiteElo "2049"]
[BlackElo "2158"]
[Result "0-1"]
[Round "10"]
[TimeControl "180+1"]
[Date "2023.10.31"]
[WhiteClock "0:00:04"]
[BlackClock "0:00:34"]
[Board "125"]

1. d4 {[%clk 0:03:00]}  d5 {[%clk 0:03:00]} 2. c4 {[%clk 0:03:01]}  e6 {[%clk 0:03:00]} 3. Nc3 {[%clk 0:03:01]}  Nf6 {[%clk 0:03:00]} 4. Bg5 {[%clk 0:03:00]}  Be7 {[%clk 0:03:00]} 5. Nf3 {[%clk 0:03:00]}  h6 {[%clk 0:03:01]} 6. Bh4 {[%clk 0:02:59]}  O-O {[%clk 0:03:01]} 7. e3 {[%clk 0:03:00]}  b6 {[%clk 0:03:01]} 8. Qc2 {[%clk 0:02:59]}  Bb7 {[%clk 0:03:02]} 9. cxd5 {[%clk 0:02:59]}  exd5 {[%clk 0:03:01]} 10. Bd3 {[%clk 0:02:59]}  Nbd7 {[%clk 0:03:01]} 11. O-O {[%clk 0:02:56]}  Rc8 {[%clk 0:03:02]} 12. Bf5 {[%clk 0:02:52]}  c5 {[%clk 0:02:51]} 13. Ne5 {[%clk 0:02:51]}  cxd4 {[%clk 0:02:49]} 14. exd4 {[%clk 0:02:52]}  Rc7 {[%clk 0:02:42]} 15. Nxd7 {[%clk 0:02:36]}  Nxd7 {[%clk 0:02:40]} 16. Bxe7 {[%clk 0:02:34]}  Qxe7 {[%clk 0:02:37]} 17. Rfe1 {[%clk 0:02:34]}  Qg5 {[%clk 0:02:32]} 18. Bxd7 {[%clk 0:02:28]}  Rxd7 {[%clk 0:02:32]} 19. Re3 {[%clk 0:02:26]}  Rc8 {[%clk 0:02:15]} 20. Rae1 {[%clk 0:02:23]}  Rdd8 {[%clk 0:02:04]} 21. Qd3 {[%clk 0:02:11]}  Bc6 {[%clk 0:01:51]} 22. Rg3 {[%clk 0:02:09]}  Qh5 {[%clk 0:01:42]} 23. Rh3 {[%clk 0:01:46]}  Qg5 {[%clk 0:01:36]} 24. Rg3 {[%clk 0:01:38]}  Qh5 {[%clk 0:01:27]} 25. Re5 {[%clk 0:01:36]}  Qh4 {[%clk 0:01:16]} 26. h3 {[%clk 0:01:18]}  Re8 {[%clk 0:01:14]} 27. Rg4 {[%clk 0:01:10]}  Qf6 {[%clk 0:01:06]} 28. Rf5 {[%clk 0:01:09]}  Qd6 {[%clk 0:01:04]} 29. g3 {[%clk 0:00:47]}  Re1+ {[%clk 0:00:52]} 30. Kg2 {[%clk 0:00:44]}  Bd7 {[%clk 0:00:50]} 31. Rxd5 {[%clk 0:00:34]}  Bc6 {[%clk 0:00:50]} 32. Qf5 {[%clk 0:00:23]}  Bxd5+ {[%clk 0:00:51]} 33. Nxd5 {[%clk 0:00:23]}  Re6 {[%clk 0:00:42]} 34. Nf6+ {[%clk 0:00:19]}  Kf8 {[%clk 0:00:38]} 35. Nh7+ {[%clk 0:00:11]}  Kg8 {[%clk 0:00:35]} 36. Nf6+ {[%clk 0:00:11]}  Rxf6 {[%clk 0:00:34]} 37. Qxc8+ {[%clk 0:00:11]}  Kh7 {[%clk 0:00:35]} 38. Qc3 {[%clk 0:00:05]}  Qd5+ {[%clk 0:00:35]} 39. Kh2 {[%clk 0:00:04]}  Rxf2+ {[%clk 0:00:34]} 40. Kg1 {[%clk 0:00:04]}  Qg2# {[%clk 0:00:34]} 0-1


[Site "https://www.chess.com"]

[Event "Titled Tuesday Blitz October 31 Early 2023"]
[White "Mohammadian,Mohammad"]
[Black "Ferrufino, Boris"]
[WhiteFideId "12566055"]
[BlackFideId "3300170"]
[WhiteElo "1888"]
[BlackElo "2170"]
[Result "0-1"]
[Round "10"]
[TimeControl "180+1"]
[Date "2023.10.31"]
[WhiteClock "0:00:12"]
[BlackClock "0:01:46"]
[Board "133"]

1. e4 {[%clk 0:03:00]}  c5 {[%clk 0:02:57]} 2. Nf3 {[%clk 0:03:00]}  d6 {[%clk 0:02:57]} 3. d4 {[%clk 0:02:59]}  cxd4 {[%clk 0:02:58]} 4. Nxd4 {[%clk 0:02:59]}  Nf6 {[%clk 0:02:59]} 5. Nc3 {[%clk 0:02:58]}  g6 {[%clk 0:02:59]} 6. Be2 {[%clk 0:02:58]}  Bg7 {[%clk 0:03:00]} 7. Be3 {[%clk 0:02:57]}  Nc6 {[%clk 0:03:01]} 8. Qd2 {[%clk 0:02:56]}  O-O {[%clk 0:03:01]} 9. O-O-O {[%clk 0:02:56]}  Ng4 {[%clk 0:03:01]} 10. Bxg4 {[%clk 0:02:54]}  Bxg4 {[%clk 0:03:02]} 11. f3 {[%clk 0:02:54]}  Be6 {[%clk 0:03:01]} 12. h4 {[%clk 0:02:54]}  Rc8 {[%clk 0:03:01]} 13. g4 {[%clk 0:02:52]}  Ne5 {[%clk 0:02:59]} 14. Qh2 {[%clk 0:02:26]}  Nc4 {[%clk 0:02:58]} 15. Bf2 {[%clk 0:02:12]}  Qa5 {[%clk 0:02:53]} 16. Nb3 {[%clk 0:02:07]}  Qb4 {[%clk 0:02:52]} 17. Bd4 {[%clk 0:01:51]}  Nxb2 {[%clk 0:02:32]} 18. Bxg7 {[%clk 0:01:48]}  Kxg7 {[%clk 0:02:33]} 19. Nd5 {[%clk 0:01:28]}  Bxd5 {[%clk 0:02:28]} 20. Rxd5 {[%clk 0:01:27]}  Nc4 {[%clk 0:02:17]} 21. h5 {[%clk 0:01:25]}  Qa3+ {[%clk 0:02:11]} 22. Kd1 {[%clk 0:01:13]}  Ne3+ {[%clk 0:02:11]} 23. Kd2 {[%clk 0:01:01]}  Rxc2+ {[%clk 0:02:10]} 24. Kxe3 {[%clk 0:01:00]}  Rxh2 {[%clk 0:02:11]} 25. Rxh2 {[%clk 0:00:59]}  Rc8 {[%clk 0:02:11]} 26. hxg6 {[%clk 0:00:58]}  hxg6 {[%clk 0:02:11]} 27. Rdd2 {[%clk 0:00:43]}  Rc3+ {[%clk 0:02:09]} 28. Kf4 {[%clk 0:00:40]}  a5 {[%clk 0:01:59]} 29. Rh3 {[%clk 0:00:34]}  a4 {[%clk 0:01:58]} 30. Nd4 {[%clk 0:00:32]}  Rd3 {[%clk 0:01:59]} 31. Rdh2 {[%clk 0:00:26]}  Qc1+ {[%clk 0:01:52]} 32. Kg3 {[%clk 0:00:20]}  Rxd4 {[%clk 0:01:50]} 33. Rh7+ {[%clk 0:00:19]}  Kf6 {[%clk 0:01:50]} 34. g5+ {[%clk 0:00:18]}  Qxg5+ {[%clk 0:01:50]} 35. Kf2 {[%clk 0:00:16]}  Rd2+ {[%clk 0:01:50]} 36. Kf1 {[%clk 0:00:12]}  Rd1+ {[%clk 0:01:46]} 37. Ke2 {[%clk 0:00:12]}  Qd2# {[%clk 0:01:46]} 0-1


[Site "https://www.chess.com"]

[Event "Titled Tuesday Blitz October 31 Early 2023"]
[White "Sarkar, Justin"]
[Black "dontcatchmeifyoucant"]
[WhiteFideId "2010011"]
[WhiteElo "2222"]
[BlackElo "2106"]
[Result "1-0"]
[Round "10"]
[TimeControl "180+1"]
[Date "2023.10.31"]
[WhiteClock "0:00:41"]
[BlackClock "0:00:00"]
[Board "135"]

1. d4 {[%clk 0:02:26]}  Nf6 {[%clk 0:02:55]} 2. c4 {[%clk 0:02:26]}  e6 {[%clk 0:02:51]} 3. Nc3 {[%clk 0:02:25]}  Bb4 {[%clk 0:02:51]} 4. e3 {[%clk 0:02:24]}  O-O {[%clk 0:02:49]} 5. Bd3 {[%clk 0:02:24]}  d5 {[%clk 0:00:44]} 6. Nf3 {[%clk 0:02:23]}  c5 {[%clk 0:00:39]} 7. O-O {[%clk 0:02:20]}  cxd4 {[%clk 0:00:35]} 8. exd4 {[%clk 0:02:18]}  dxc4 {[%clk 0:00:36]} 9. Bxc4 {[%clk 0:02:19]}  b6 {[%clk 0:00:36]} 10. Qe2 {[%clk 0:02:05]}  Bb7 {[%clk 0:00:34]} 11. Rd1 {[%clk 0:02:03]}  Nbd7 {[%clk 0:00:30]} 12. d5 {[%clk 0:02:02]}  exd5 {[%clk 0:00:24]} 13. Nxd5 {[%clk 0:01:58]}  Nxd5 {[%clk 0:00:24]} 14. Bxd5 {[%clk 0:01:58]}  Bxd5 {[%clk 0:00:24]} 15. Rxd5 {[%clk 0:01:58]}  Qc7 {[%clk 0:00:11]} 16. Qb5 {[%clk 0:01:33]}  Nf6 {[%clk 0:00:07]} 17. Rd1 {[%clk 0:01:20]}  Bc5 {[%clk 0:00:05]} 18. Bg5 {[%clk 0:01:19]}  Ne4 {[%clk 0:00:03]} 19. Bh4 {[%clk 0:01:17]}  Rfe8 {[%clk 0:00:03]} 20. Rd7 {[%clk 0:00:56]}  Qc8 {[%clk 0:00:02]} 21. Rad1 {[%clk 0:00:52]}  a6 {[%clk 0:00:02]} 22. Qb3 {[%clk 0:00:45]}  Nd6 {[%clk 0:00:01]} 23. R1xd6 {[%clk 0:00:41]}  Bxd6 {[%clk 0:00:00]} 24. Qxf7+ {[%clk 0:00:41]} 1-0


[Site "https://www.chess.com"]

[Event "Titled Tuesday Blitz October 31 Early 2023"]
[White "Skiadopoulos, Nikolaos"]
[Black "kingapolak"]
[WhiteFideId "4200772"]
[WhiteElo "1789"]
[BlackElo "2154"]
[Result "0-1"]
[Round "10"]
[TimeControl "180+1"]
[Date "2023.10.31"]
[WhiteClock "0:00:00"]
[BlackClock "0:00:07"]
[Board "137"]

1. b4 {[%clk 0:02:58]}  Nf6 {[%clk 0:02:49]} 2. Bb2 {[%clk 0:02:57]}  g6 {[%clk 0:02:49]} 3. g4 {[%clk 0:02:53]}  Bg7 {[%clk 0:02:44]} 4. Bg2 {[%clk 0:02:53]}  h6 {[%clk 0:02:34]} 5. Nf3 {[%clk 0:02:49]}  d6 {[%clk 0:02:34]} 6. h3 {[%clk 0:02:47]}  e5 {[%clk 0:02:33]} 7. d3 {[%clk 0:02:34]}  O-O {[%clk 0:02:31]} 8. c4 {[%clk 0:02:33]}  c6 {[%clk 0:02:29]} 9. e4 {[%clk 0:02:32]}  Nbd7 {[%clk 0:02:23]} 10. Qd2 {[%clk 0:02:28]}  Re8 {[%clk 0:02:23]} 11. Nc3 {[%clk 0:02:21]}  Nf8 {[%clk 0:02:23]} 12. a4 {[%clk 0:02:06]}  Ne6 {[%clk 0:02:23]} 13. a5 {[%clk 0:02:03]}  Nf4 {[%clk 0:02:23]} 14. Bf1 {[%clk 0:02:03]}  d5 {[%clk 0:02:11]} 15. Nxe5 {[%clk 0:01:47]}  Rxe5 {[%clk 0:01:30]} 16. Qxf4 {[%clk 0:01:46]}  Re8 {[%clk 0:01:29]} 17. f3 {[%clk 0:01:18]}  Nxe4 {[%clk 0:01:16]} 18. fxe4 {[%clk 0:01:17]}  dxc4 {[%clk 0:01:14]} 19. O-O-O {[%clk 0:01:11]}  Qe7 {[%clk 0:01:09]} 20. Na2 {[%clk 0:00:53]}  cxd3 {[%clk 0:01:07]} 21. Bxg7 {[%clk 0:00:52]}  Kxg7 {[%clk 0:01:05]} 22. Bxd3 {[%clk 0:00:50]}  Be6 {[%clk 0:01:06]} 23. Qe5+ {[%clk 0:00:36]}  f6 {[%clk 0:01:05]} 24. Qb2 {[%clk 0:00:35]}  Bxa2 {[%clk 0:00:48]} 25. Qxa2 {[%clk 0:00:35]}  Qxb4 {[%clk 0:00:48]} 26. Rh2 {[%clk 0:00:33]}  Rad8 {[%clk 0:00:42]} 27. Rb2 {[%clk 0:00:16]}  Qc5+ {[%clk 0:00:30]} 28. Kb1 {[%clk 0:00:15]}  Rxe4 {[%clk 0:00:21]} 29. Rxb7+ {[%clk 0:00:14]}  Kh8 {[%clk 0:00:15]} 30. Qf7 {[%clk 0:00:11]}  Rb4+ {[%clk 0:00:15]} 31. Rxb4 {[%clk 0:00:05]}  Qxb4+ {[%clk 0:00:15]} 32. Kc2 {[%clk 0:00:04]}  Qc5+ {[%clk 0:00:11]} 33. Bc4 {[%clk 0:00:00]}  Qf2+ {[%clk 0:00:07]} 0-1


[Site "https://www.chess.com"]

[Event "Titled Tuesday Blitz October 31 Early 2023"]
[White "Kovalev, Vladislav"]
[Black "Nakamura, Hikaru"]
[WhiteFideId "13504398"]
[BlackFideId "2016192"]
[WhiteElo "2913"]
[BlackElo "3232"]
[Result "0-1"]
[Round "11"]
[TimeControl "180+1"]
[Date "2023.10.31"]
[WhiteClock "0:00:00"]
[BlackClock "0:00:25"]
[Board "2"]

1. e4 {[%clk 0:03:00]}  a6 {[%clk 0:02:58]} 2. d3 {[%clk 0:03:01]}  c5 {[%clk 0:02:57]} 3. g3 {[%clk 0:03:01]}  g6 {[%clk 0:02:57]} 4. Bg2 {[%clk 0:03:02]}  Bg7 {[%clk 0:02:58]} 5. Nf3 {[%clk 0:03:00]}  Nc6 {[%clk 0:02:58]} 6. O-O {[%clk 0:03:01]}  e5 {[%clk 0:02:56]} 7. c3 {[%clk 0:03:01]}  Nge7 {[%clk 0:02:57]} 8. Be3 {[%clk 0:02:58]}  d6 {[%clk 0:02:56]} 9. d4 {[%clk 0:02:59]}  exd4 {[%clk 0:02:56]} 10. cxd4 {[%clk 0:03:00]}  Bg4 {[%clk 0:02:56]} 11. dxc5 {[%clk 0:02:51]}  Bxb2 {[%clk 0:02:48]} 12. Nbd2 {[%clk 0:02:50]}  dxc5 {[%clk 0:02:41]} 13. Rb1 {[%clk 0:02:40]}  Bd4 {[%clk 0:02:41]} 14. Bxd4 {[%clk 0:02:39]}  Nxd4 {[%clk 0:02:33]} 15. Rxb7 {[%clk 0:02:39]}  O-O {[%clk 0:02:32]} 16. h3 {[%clk 0:02:19]}  Bc8 {[%clk 0:02:26]} 17. Rb2 {[%clk 0:02:18]}  Be6 {[%clk 0:02:26]} 18. e5 {[%clk 0:02:01]}  Nec6 {[%clk 0:01:56]} 19. Ne4 {[%clk 0:01:51]}  Nxf3+ {[%clk 0:01:50]} 20. Qxf3 {[%clk 0:01:52]}  Nxe5 {[%clk 0:01:50]} 21. Nf6+ {[%clk 0:01:02]}  Kg7 {[%clk 0:01:50]} 22. Qxa8 {[%clk 0:00:59]}  Qxa8 {[%clk 0:01:43]} 23. Bxa8 {[%clk 0:00:57]}  Rxa8 {[%clk 0:01:43]} 24. Ne4 {[%clk 0:00:55]}  Bxh3 {[%clk 0:01:43]} 25. Rd1 {[%clk 0:00:51]}  c4 {[%clk 0:01:26]} 26. f4 {[%clk 0:00:43]}  Nd3 {[%clk 0:01:02]} 27. Rc2 {[%clk 0:00:43]}  Re8 {[%clk 0:00:48]} 28. Nd6 {[%clk 0:00:43]}  Re3 {[%clk 0:00:48]} 29. Kh2 {[%clk 0:00:39]}  Be6 {[%clk 0:00:48]} 30. Rf1 {[%clk 0:00:11]}  Nb4 {[%clk 0:00:38]} 31. Rb2 {[%clk 0:00:07]}  a5 {[%clk 0:00:36]} 32. f5 {[%clk 0:00:04]}  Bd5 {[%clk 0:00:32]} 33. f6+ {[%clk 0:00:04]}  Kh6 {[%clk 0:00:32]} 34. Rd2 {[%clk 0:00:04]}  Rd3 {[%clk 0:00:24]} 35. Rxd3 {[%clk 0:00:00]}  Nxd3 {[%clk 0:00:25]} 0-1


[Site "https://www.chess.com"]

[Event "Titled Tuesday Blitz October 31 Early 2023"]
[White "So, Wesley"]
[Black "Makarian, Rudik"]
[WhiteFideId "5202213"]
[BlackFideId "44105681"]
[WhiteElo "3109"]
[BlackElo "3043"]
[Result "0-1"]
[Round "11"]
[TimeControl "180+1"]
[Date "2023.10.31"]
[WhiteClock "0:00:06"]
[BlackClock "0:00:06"]
[Board "3"]

1. b3 {[%clk 0:02:42]}  d5 {[%clk 0:02:59]} 2. Bb2 {[%clk 0:02:41]}  Bg4 {[%clk 0:02:59]} 3. h3 {[%clk 0:02:41]}  Bh5 {[%clk 0:02:59]} 4. Nf3 {[%clk 0:02:41]}  Bxf3 {[%clk 0:02:58]} 5. exf3 {[%clk 0:02:39]}  Nf6 {[%clk 0:02:58]} 6. f4 {[%clk 0:02:35]}  e6 {[%clk 0:02:57]} 7. Qe2 {[%clk 0:02:30]}  Nbd7 {[%clk 0:02:36]} 8. f5 {[%clk 0:02:28]}  e5 {[%clk 0:02:36]} 9. g4 {[%clk 0:02:09]}  Bd6 {[%clk 0:02:29]} 10. Bg2 {[%clk 0:02:09]}  O-O {[%clk 0:02:26]} 11. g5 {[%clk 0:02:07]}  Ne4 {[%clk 0:02:25]} 12. Bxe4 {[%clk 0:02:07]}  dxe4 {[%clk 0:02:25]} 13. Rg1 {[%clk 0:02:04]}  Nc5 {[%clk 0:02:21]} 14. Nc3 {[%clk 0:02:04]}  Qd7 {[%clk 0:02:18]} 15. Qg4 {[%clk 0:01:56]}  Qc6 {[%clk 0:02:05]} 16. Qh4 {[%clk 0:01:31]}  b5 {[%clk 0:01:52]} 17. f6 {[%clk 0:01:23]}  b4 {[%clk 0:01:49]} 18. fxg7 {[%clk 0:01:22]}  Rfe8 {[%clk 0:01:45]} 19. Ne2 {[%clk 0:01:21]}  Ne6 {[%clk 0:01:37]} 20. O-O-O {[%clk 0:01:11]}  Nf4 {[%clk 0:01:17]} 21. Nxf4 {[%clk 0:01:09]}  exf4 {[%clk 0:01:18]} 22. Rg4 {[%clk 0:00:57]}  Qd5 {[%clk 0:00:58]} 23. Rdg1 {[%clk 0:00:56]}  Be5 {[%clk 0:00:37]} 24. Rxf4 {[%clk 0:00:45]}  Rad8 {[%clk 0:00:27]} 25. Rd1 {[%clk 0:00:36]}  Bxf4 {[%clk 0:00:17]} 26. Qxf4 {[%clk 0:00:37]}  Re6 {[%clk 0:00:17]} 27. Qxc7 {[%clk 0:00:32]}  Rc6 {[%clk 0:00:11]} 28. Qe5 {[%clk 0:00:31]}  Rxc2+ {[%clk 0:00:05]} 29. Kxc2 {[%clk 0:00:28]}  Qd3+ {[%clk 0:00:06]} 30. Kc1 {[%clk 0:00:28]}  Rc8+ {[%clk 0:00:07]} 31. Bc3 {[%clk 0:00:28]}  bxc3 {[%clk 0:00:08]} 32. dxc3 {[%clk 0:00:29]}  Rxc3+ {[%clk 0:00:07]} 33. Kb2 {[%clk 0:00:29]}  Rc2+ {[%clk 0:00:08]} 34. Ka3 {[%clk 0:00:28]}  Qxd1 {[%clk 0:00:08]} 35. Qe8+ {[%clk 0:00:26]}  Kxg7 {[%clk 0:00:09]} 36. Qe5+ {[%clk 0:00:27]}  Kf8 {[%clk 0:00:09]} 37. Qh8+ {[%clk 0:00:15]}  Ke7 {[%clk 0:00:10]} 38. Qe5+ {[%clk 0:00:16]}  Kd7 {[%clk 0:00:09]} 39. Qf5+ {[%clk 0:00:16]}  Ke8 {[%clk 0:00:05]} 40. Qxe4+ {[%clk 0:00:16]}  Kd8 {[%clk 0:00:06]} 41. Qxh7 {[%clk 0:00:04]}  Qd6+ {[%clk 0:00:05]} 42. b4 {[%clk 0:00:05]}  Qa6+ {[%clk 0:00:05]} 43. Kb3 {[%clk 0:00:06]}  Qxa2# {[%clk 0:00:06]} 0-1


[Site "https://www.chess.com"]